fUST/lending_fUST_20240410
["ID","MTS","AMOUNT","RATE_DAILY","PERIOD"]
[322014524,1712687440801,-153.0,0.0002351,2]
[322014526,1712687440809,-153.0,0.0002351,2]
[322014528,1712687440819,-153.0,0.00023578,2]
[322014530,1712687440829,-153.0,0.00023578,2]
[322014532,1712687440839,-153.0,0.00023578,2]
[322014534,1712687440849,-153.0,0.00023578,2]
[322014536,1712687440858,-153.0,0.00023578,2]
[322014538,1712687440867,-153.0,0.00023578,2]
[322014540,1712687440876,-153.0,0.00023578,2]
[322014542,1712687440886,-3115.7244094,0.000236,2]
[322014545,1712687440905,-24669.7595499,0.000236,2]
[322014842,1712687443697,-1114.33846688,0.000236,2]
[322015148,1712687446585,-319.5111326,0.00023314,2]
[322015749,1712687453931,150.0,0.00021,30]
[322015817,1712687454573,284.55466183,0.0002103,2]
[322015872,1712687470560,284.55466183,0.0002103,2]
[322015873,1712687488561,284.55466183,0.0002103,2]
[322015874,1712687508567,284.55466183,0.0002103,2]
[322015876,1712687530576,284.55466183,0.0002103,2]
[322015877,1712687552588,284.55466183,0.0002103,2]
[322015878,1712687570572,407.93404075,0.0002103,2]
[322015879,1712687609560,2000.0,0.000262,30]
[322015884,1712688199928,2000.0,0.000262,30]
[322015965,1712688638872,-4607.08786749,0.0002139,2]
[322016328,1712688643953,-1440.11481461,0.0002139,2]
[322016329,1712688643964,-608.64050756,0.0002139,2]
[322016623,1712688646855,-17904.64567774,0.0002139,2]
[322016625,1712688646865,-300.0859513,0.00021396,2]
[322016627,1712688646874,-2121.15236818,0.00021397,2]
[322016629,1712688646884,-161.21124244,0.000214,2]
[322016631,1712688646893,-300.0,0.00021999,2]
[322016633,1712688646902,-638.05192735,0.00022,2]
[322016635,1712688646911,-309.0,0.00022,2]
[322016638,1712688646922,-201.46465458,0.00022,2]
[322016698,1712688692798,474.88228301,0.00021962,5]
[322016699,1712688734374,211.90313191,0.000199,2]
[322016709,1712688800654,2000.0,0.000262,30]
[322016713,1712688824606,155.0,0.000199,2]
[322016714,1712688825484,217.20743409,0.00019,2]
[322016715,1712688828977,300.15471224,0.000183,2]
[322016716,1712688829285,14867.56538968,0.000199,2]
[322016717,1712688840599,157.60250926,0.000199,2]
[322016718,1712688864760,167.07850715,0.0002,2]
[322016719,1712688866008,155.0,0.0002,2]
[322016723,1712688886119,155.29342344,0.0002,2]
[322016724,1712689003121,-518.395,0.00021977,2]
[322016725,1712689003154,-205.70180304,0.00021978,2]
[322016726,1712689003188,-207.24041701,0.00021978,2]
[322016727,1712689003221,-1617.16242552,0.00021978,2]
[322016728,1712689003257,-2093.30000142,0.00021978,2]
[322016729,1712689003289,-2121.15236818,0.00021978,2]
[322016730,1712689003469,-1930.68038705,0.00021979,2]
[322016731,1712689003505,-300.0859513,0.0002198,2]
[322016732,1712689003538,-155.0,0.0002198,2]
[322016733,1712689003573,-155.0,0.00021981,2]
[322016734,1712689003605,-1029.02845319,0.00021981,2]
[322016735,1712689003638,-562.27799089,0.00021982,2]
[322016736,1712689003672,-300.0,0.00021982,2]
[322016737,1712689003705,-358.40738442,0.00021988,2]
[322016738,1712689003739,-13446.56781798,0.00021989,2]
[322016739,1712689026454,-155.0,0.00021976,2]
[322016740,1712689026488,-562.27799089,0.00021976,2]
[322016741,1712689026523,-687.19966601,0.00021977,2]
[322016742,1712689026706,-424.98440806,0.00021987,2]
[322016743,1712689026743,-278.24439058,0.00021987,2]
[322016744,1712689026778,-205.70180304,0.00021987,2]
[322016745,1712689026813,-184.08779333,0.00021987,2]
[322016746,1712689026846,-352.09916954,0.00021987,2]
[322016747,1712689026879,-300.0859513,0.00021987,2]
[322016748,1712689026913,-6850.31882725,0.00021987,2]
[322016749,1712689035658,436.98021857,0.00019889,2]
[322016750,1712689043214,314.26382309,0.0002,2]
[322016751,1712689050688,384.88102707,0.0002,2]
[322016752,1712689064684,273.39846589,0.0002,2]
[322016753,1712689065182,244.0531143,0.0002,2]
[322016754,1712689076580,-215.764455,0.00021881,2]
[322016755,1712689076614,-411.83865108,0.00021882,2]
[322016756,1712689076647,-435.73017158,0.00021973,2]
[322016757,1712689076681,-473.2366857,0.00021974,2]
[322016758,1712689076714,-282.7345517,0.00021975,2]
[322016759,1712689076747,-154.98450155,0.00021975,2]
[322016760,1712689076779,-8025.71098339,0.00021975,2]
[322016761,1712689098184,-2121.15236818,0.00021974,2]
[322016762,1712689098219,-1565.84763182,0.00021974,2]
[322016763,1712689112270,24900.0,0.00020987,2]
[322016764,1712689178150,176.7106089,0.00020975,2]
[322016765,1712689194791,160.131864,0.00020681,2]
[322016766,1712689208024,2104.0575218,0.00020955,2]
[322016773,1712689331168,690.899609,0.00020952,2]
[322016774,1712689337191,291.32014572,0.00019889,2]
[322016775,1712689406753,1127.68277075,0.000262,30]
[322016783,1712689638747,194.21343048,0.00019889,2]
[322016784,1712689645547,24900.0,0.0002089,2]
[322016812,1712689829060,345.449804,0.00020854,2]
[322016869,1712689832050,-310.0,0.00021837,2]
[322017011,1712689839255,-868.36531208,0.00021836,2]
[322017013,1712689839275,-377.19966601,0.00021837,2]
[322017015,1712689839295,-5783.085097,0.00021837,2]
[322017017,1712689839317,-300.0859513,0.00021838,2]
[322017019,1712689839338,-300.0,0.00021838,2]
[322017021,1712689839349,-5566.47266521,0.00021839,2]
[322017023,1712689839359,-6908.40313979,0.00021839,2]
[322017025,1712689839369,-154.98450155,0.00021857,2]
[322017027,1712689839379,-162.1763336,0.00021874,2]
[322017029,1712689839395,-226.45997956,0.00021971,2]
[322017031,1712689839407,-1783.3565752,0.00021972,2]
[322017034,1712689839420,-1561.65,0.00021972,2]
[322017036,1712689839433,-1544.13388645,0.00021972,2]
[322017038,1712689839444,-319.88118119,0.00021972,2]
[322017040,1712689839455,-2701.28247252,0.00021972,2]
[322017724,1712689846011,-435.73017158,0.00021836,2]
[322017726,1712689846020,-642.28479566,0.00021859,2]
[322018552,1712689940040,150.0,0.00019874,2]
[322018557,1712690166811,4769.6726987,0.0002089,2]
[322018558,1712690210391,423.4073234,0.00019874,2]
[322018560,1712690223084,155.52933939,0.0002089,2]
[322018562,1712690241475,150.0,0.00019872,2]
[322018564,1712690315556,253.75114,0.00020821,2]
[322018565,1712690438949,196.96093067,0.00020779,2]
[322018568,1712690846738,253.75114,0.00020815,2]
[322018629,1712691032668,-868.36531208,0.0002171,2]
[322018632,1712691032680,-300.0859513,0.00021711,2]
[322018634,1712691032690,-180.4005216,0.00021712,2]
[322018930,1712691038146,-300.0859513,0.00021709,2]
[322018932,1712691038156,-506.79914441,0.00021712,2]
[322018934,1712691038165,-785.18771344,0.0002175,2]
[322018936,1712691038175,-261.40006546,0.00021858,2]
[322018938,1712691038185,-300.0,0.00021858,2]
[322018941,1712691038194,-1449.92678846,0.00021859,2]
[322018970,1712691038443,-2503.24633117,0.00021859,2]
[322020421,1712691383309,160.131864,0.0002057,2]
[322020434,1712692048239,151.0,0.000201,2]
[322020477,1712692232269,-360.86438748,0.00021552,2]
[322020479,1712692232278,-473.2366857,0.00021552,2]
[322020481,1712692232288,-562.27799089,0.00021553,2]
[322020483,1712692232297,-154.95351395,0.00021553,2]
[322020485,1712692232306,-205.70180304,0.00021554,2]
[322020487,1712692232315,-154.95351395,0.00021554,2]
[322020489,1712692232324,-154.95351395,0.00021554,2]
[322020491,1712692232334,-693.96300443,0.00021555,2]
[322020493,1712692232343,-2093.30000142,0.00021616,2]
[322020495,1712692232353,-154.95351395,0.00021617,2]
[322020497,1712692232363,-215.764455,0.00021617,2]
[322020499,1712692232373,-300.0,0.00021617,2]
[322020501,1712692232382,-5566.47266521,0.00021618,2]
[322020503,1712692232393,-154.98450155,0.00021652,2]
[322020505,1712692232402,-48817.80709701,0.00021654,2]
[322020757,1712692238547,-8056.72746967,0.00021654,2]
[322020759,1712692238558,-2110.26324541,0.00021654,2]
[322020761,1712692238568,-3121.43438708,0.00021655,2]
[322020763,1712692238577,-162.3492011,0.00021656,2]
[322020765,1712692238586,-346.29130495,0.00021849,2]
[322020768,1712692238597,-441.97816257,0.00021849,2]
[322020770,1712692238606,-155.06357607,0.00021857,2]
[322020773,1712692238615,-301.19496062,0.00021857,2]
[322020776,1712692238624,-337.96390733,0.00021857,2]
[322020777,1712692238633,-731.82372077,0.00021972,2]
[322020781,1712692238644,-2725.62268682,0.00021972,2]
[322020784,1712692238654,-1725.854849,0.00021972,2]
[322020786,1712692238662,-1547.74752154,0.00021972,2]
[322021295,1712692243470,-178.10732746,0.00021972,2]
[322021296,1712692243481,-295.700076,0.00021972,2]
[322021297,1712692243492,-113.50439194,0.00021972,2]
[322021298,1712692243527,-182.19568406,0.00021972,2]
[322021299,1712692243537,-185.5268534,0.00021987,2]
[322021300,1712692243546,-781.66926533,0.00021987,2]
[322021301,1712692243555,-207.61712878,0.00021987,2]
[322021302,1712692243564,-126.58418141,0.00021987,2]
[322021303,1712692243575,-28.40032014,0.00021987,2]
[322021304,1712692243584,-154.98450155,0.00021987,2]
[322021305,1712692243594,-154.98450155,0.00021987,2]
[322021306,1712692243603,-379.70522449,0.00021987,2]
[322021307,1712692243613,-156.25338756,0.00021987,2]
[322021308,1712692243622,-726.59915111,0.00021987,2]
[322021309,1712692243631,-154.9690062,0.00021987,2]
[322021310,1712692243641,-151.0,0.00021987,2]
[322021311,1712692243650,-151.0,0.00021987,2]
[322021312,1712692243659,-151.0,0.00021987,2]
[322021313,1712692243669,-309.9690031,0.00021988,2]
[322021314,1712692243678,-280.26811122,0.00021988,2]
[322021315,1712692243687,-638.05192735,0.00022,2]
[322021316,1712692243697,-3718.21894048,0.00022,2]
[322021317,1712692243706,-151.0,0.00022,2]
[322021318,1712692243715,-151.0,0.00022,2]
[322021319,1712692243725,-151.0,0.00022,2]
[322021320,1712692243734,-151.0,0.00022,2]
[322021321,1712692243743,-170.933083,0.00022,2]
[322021322,1712692243752,-170.933083,0.00022,2]
[322021323,1712692243762,-160.46541,0.00022,2]
[322021324,1712692243771,-597.053769,0.00022,2]
[322021325,1712692243781,-160.46541,0.00022,2]
[322021326,1712692243790,-597.053769,0.00022,2]
[322021327,1712692243800,-243.044772,0.00022,2]
[322021328,1712692243810,-243.044772,0.00022,2]
[322021329,1712692243821,-278.971906,0.00022,2]
[322021330,1712692243831,-278.971906,0.00022,2]
[322021331,1712692243841,-1725.854849,0.00022,2]
[322021332,1712692243851,-1725.854849,0.00022,2]
[322021333,1712692243860,-295.700076,0.00022,2]
[322021334,1712692243870,-295.700076,0.00022,2]
[322021335,1712692243882,-302.431987,0.00022,2]
[322021336,1712692243891,-302.431987,0.00022,2]
[322021337,1712692243901,-302.431987,0.00022,2]
[322021338,1712692243911,-302.431987,0.00022,2]
[322021339,1712692244044,-151.0,0.00022,2]
[322021340,1712692244053,-151.0,0.00022,2]
[322021341,1712692244064,-151.0,0.00022,2]
[322021342,1712692244073,-151.0,0.00022,2]
[322021343,1712692244083,-169.038386,0.00022,2]
[322021344,1712692244093,-169.038386,0.00022,2]
[322021345,1712692244104,-169.038386,0.00022,2]
[322021346,1712692244114,-169.038386,0.00022,2]
[322021347,1712692244124,-155.559444,0.00022,2]
[322021348,1712692244135,-337.960999,0.00022,2]
[322021349,1712692244147,-337.960999,0.00022,2]
[322021350,1712692244156,-337.960999,0.00022,2]
[322021351,1712692244165,-337.960999,0.00022,2]
[322021352,1712692244174,-151.0,0.00022,2]
[322021353,1712692244183,-151.0,0.00022,2]
[322021354,1712692244193,-260.453114,0.00022,2]
[322021355,1712692244203,-260.453114,0.00022,2]
[322021356,1712692244212,-260.453114,0.00022,2]
[322021357,1712692244221,-260.453114,0.00022,2]
[322021358,1712692244232,-3121.43438705,0.00022381,2]
[322021359,1712692244242,-151.0,0.00022381,2]
[322021360,1712692244251,-151.0,0.00022381,2]
[322021361,1712692244260,-169.038386,0.00022381,2]
[322021362,1712692244269,-169.038386,0.00022381,2]
[322021363,1712692244278,-337.960999,0.00022381,2]
[322021364,1712692244287,-337.960999,0.00022381,2]
[322021365,1712692244297,-151.0,0.00022381,2]
[322021366,1712692244306,-260.453114,0.00022381,2]
[322021367,1712692244315,-260.453114,0.00022381,2]
[322021368,1712692244324,-162.3492011,0.00022381,2]
[322021369,1712692244333,-628.41347338,0.00022942,2]
[322021370,1712692244342,-1725.854849,0.00022942,2]
[322021371,1712692244350,-1303.24559437,0.00022942,2]
[322021394,1712692246380,-151.0,0.00022,2]
[322021396,1712692246389,-151.0,0.00022,2]
[322021399,1712692246399,-151.0,0.00022381,2]
[322021400,1712692246409,-355.43934015,0.00022942,2]
[322022082,1712693438556,-154.92253873,0.00021443,2]
[322022084,1712693438566,-154.92253873,0.00021444,2]
[322022086,1712693438576,-160.131864,0.00021445,2]
[322022088,1712693438585,-2093.30000142,0.00021898,2]
[322022090,1712693438594,-162.3492011,0.00021899,2]
[322022092,1712693438603,-3718.21894048,0.00022706,2]
[322022094,1712693438613,-638.05192735,0.00022707,2]
[322022096,1712693438622,-300.0,0.00022708,2]
[322022098,1712693438631,-157.56912339,0.00022712,2]
[322022100,1712693438640,-607.21762892,0.000229,2]
[322022102,1712693438649,-304.06835305,0.00022997,2]
[322022104,1712693438658,-58984.79781209,0.00022999,2]
[322022106,1712693438668,-242.74204017,0.00023,2]
[322022108,1712693438677,-153.0,0.000231,2]
[322022110,1712693438686,-153.0,0.000231,2]
[322022112,1712693438695,-153.0,0.000231,2]
[322022114,1712693438703,-153.0,0.000231,2]
[322022116,1712693438713,-153.0,0.000231,2]
[322022118,1712693438722,-162.3492011,0.00023228,2]
[322022120,1712693438731,-306.0,0.000233,2]
[322022122,1712693438740,-153.0,0.000233,2]
[322022124,1712693438749,-310.1006851,0.000233,2]
[322022126,1712693438758,-202.7418102,0.000233,2]
[322022128,1712693438767,-153.0,0.000233,2]
[322022130,1712693438776,-153.0,0.000233,2]
[322022132,1712693438785,-153.0,0.000233,2]
[322022134,1712693438794,-153.0,0.00023337,2]
[322022136,1712693438803,-308.4476379,0.000234,2]
[322022138,1712693438812,-293.7790251,0.000235,2]
[322022140,1712693438821,-153.0,0.000235,2]
[322022142,1712693438830,-153.0,0.00023562,2]
[322022144,1712693438839,-3632.17533431,0.000236,2]
[322022146,1712693438849,-221.476,0.00023684,2]
[322022148,1712693438858,-1872.86063223,0.000238,2]
[322022150,1712693438867,-153.0,0.00023859,2]
[322022152,1712693438876,-306.0,0.00023859,2]
[322022153,1712693438884,-187.10036255,0.00023898,2]
[322022155,1712693438894,-329.890074,0.00023898,2]
[322022158,1712693438903,-333.07739464,0.00023898,2]
[322022160,1712693438912,-220.492799,0.00023898,2]
[322022162,1712693438922,-211.17996185,0.00023899,2]
[322022163,1712693438931,-155.14288272,0.00023899,2]
[322022166,1712693438940,-4582.98352148,0.00023899,2]
[322022168,1712693438949,-323.98544134,0.00023899,2]
[322022169,1712693438958,-485.59797989,0.00023899,2]
[322022171,1712693438967,-154.911628,0.00023899,2]
[322022173,1712693438976,-153.839775,0.00023899,2]
[322022175,1712693438985,-153.839775,0.00023899,2]
[322022177,1712693438995,-151.158428,0.00023899,2]
[322022179,1712693439004,-151.0,0.00023899,2]
[322022181,1712693439013,-151.0,0.00023899,2]
[322022184,1712693439023,-151.0,0.00023899,2]
[322022186,1712693439032,-151.0,0.00023899,2]
[322022187,1712693439041,-151.0,0.00023899,2]
[322022188,1712693439050,-151.0,0.00023899,2]
[322022189,1712693439060,-153.839775,0.000239,2]
[322022190,1712693439070,-153.839775,0.000239,2]
[322022191,1712693439079,-153.839775,0.000239,2]
[322022193,1712693439088,-153.839775,0.000239,2]
[322022194,1712693439097,-153.839775,0.000239,2]
[322022197,1712693439107,-153.839775,0.000239,2]
[322022199,1712693439116,-151.0,0.000239,2]
[322022201,1712693439125,-151.0,0.000239,2]
[322022202,1712693439134,-201.770848,0.000239,2]
[322022205,1712693439144,-151.0,0.000239,2]
[322022207,1712693439153,-151.0,0.000239,2]
[322022209,1712693439164,-151.0,0.000239,2]
[322022211,1712693439173,-151.0,0.000239,2]
[322022213,1712693439182,-151.0,0.000239,2]
[322022215,1712693439191,-151.0,0.000239,2]
[322022216,1712693439202,-151.0,0.000239,2]
[322022219,1712693439211,-151.0,0.000239,2]
[322022221,1712693439220,-151.0,0.000239,2]
[322022223,1712693439230,-151.0,0.000239,2]
[322022225,1712693439239,-151.0,0.000239,2]
[322022227,1712693439248,-151.0,0.000239,2]
[322022229,1712693439257,-151.0,0.000239,2]
[322022231,1712693439267,-151.0,0.000239,2]
[322022233,1712693439276,-151.0,0.000239,2]
[322022235,1712693439285,-151.0,0.000239,2]
[322022237,1712693439295,-151.0,0.000239,2]
[322022238,1712693439304,-151.0,0.000239,2]
[322022240,1712693439317,-151.0,0.000239,2]
[322022243,1712693439327,-151.0,0.000239,2]
[322022244,1712693439335,-151.0,0.000239,2]
[322022246,1712693439345,-151.0,0.000239,2]
[322022248,1712693439355,-280.576899,0.000239,2]
[322022250,1712693439364,-1211.45689,0.000239,2]
[322022252,1712693439373,-1211.45689,0.000239,2]
[322022254,1712693439382,-1211.45689,0.000239,2]
[322022256,1712693439393,-1211.45689,0.000239,2]
[322022258,1712693439402,-1211.45689,0.000239,2]
[322022260,1712693439411,-1211.45689,0.000239,2]
[322022262,1712693439420,-236.56006,0.000239,2]
[322022264,1712693439430,-236.56006,0.000239,2]
[322022266,1712693439439,-236.56006,0.000239,2]
[322022268,1712693439448,-236.56006,0.000239,2]
[322022270,1712693439457,-236.56006,0.000239,2]
[322022272,1712693439466,-236.56006,0.000239,2]
[322022274,1712693439475,-537.348392,0.000239,2]
[322022276,1712693439485,-537.348392,0.000239,2]
[322022278,1712693439494,-537.348392,0.000239,2]
[322022280,1712693439503,-537.348392,0.000239,2]
[322022282,1712693439512,-218.740294,0.000239,2]
[322022284,1712693439521,-218.740294,0.000239,2]
[322022286,1712693439531,-218.740294,0.000239,2]
[322022288,1712693439540,-218.740294,0.000239,2]
[322022290,1712693439549,-241.945589,0.000239,2]
[322022292,1712693439559,-241.945589,0.000239,2]
[322022295,1712693439568,-151.0,0.000239,2]
[322022297,1712693439577,-151.0,0.000239,2]
[322022299,1712693439587,-241.945589,0.000239,2]
[322022301,1712693439596,-241.945589,0.000239,2]
[322022303,1712693439605,-151.0,0.000239,2]
[322022305,1712693439614,-151.0,0.000239,2]
[322022307,1712693439623,-251.074715,0.000239,2]
[322022309,1712693439633,-251.074715,0.000239,2]
[322022311,1712693439642,-251.074715,0.000239,2]
[322022313,1712693439651,-251.074715,0.000239,2]
[322022315,1712693439662,-151.0,0.000239,2]
[322022317,1712693439671,-151.0,0.000239,2]
[322022319,1712693439680,-151.0,0.000239,2]
[322022321,1712693439690,-151.0,0.000239,2]
[322022323,1712693439699,-236.572699,0.000239,2]
[322022325,1712693439708,-236.572699,0.000239,2]
[322022327,1712693439718,-151.0,0.000239,2]
[322022329,1712693439727,-151.0,0.000239,2]
[322022331,1712693439738,-151.0,0.000239,2]
[322022333,1712693439747,-182.31718,0.000239,2]
[322022335,1712693439756,-182.31718,0.000239,2]
[322022337,1712693439766,-1211.45689,0.00023988,2]
[322022339,1712693439775,-1211.45689,0.00023988,2]
[322022341,1712693439784,-236.56006,0.00023988,2]
[322022343,1712693439793,-236.56006,0.00023988,2]
[322022345,1712693439802,-241.945589,0.00023989,2]
[322022347,1712693439811,-151.0,0.00023989,2]
[322022349,1712693439821,-241.945589,0.00023989,2]
[322022371,1712693439936,-151.0,0.00023989,2]
[322022374,1712693439947,-151.0,0.00023989,2]
[322022376,1712693439956,-151.0,0.00023989,2]
[322022379,1712693439965,-236.572699,0.00023989,2]
[322022381,1712693439975,-236.572699,0.00023989,2]
[322022383,1712693439984,-151.0,0.00023989,2]
[322022385,1712693439993,-151.0,0.00023989,2]
[322022387,1712693440002,-182.31718,0.00023989,2]
[322022389,1712693440013,-182.31718,0.00023989,2]
[322022391,1712693440022,-1872.86063223,0.00023989,2]
[322022393,1712693440031,-2934.51551766,0.00023998,2]
[322022395,1712693440041,-887.1997434,0.00023998,2]
[322022397,1712693440051,-234.45215236,0.00023998,2]
[322022399,1712693440060,-407.48657465,0.00023998,2]
[322022401,1712693440069,-469.76688052,0.00023998,2]
[322022403,1712693440080,-1962.80391071,0.00023998,2]
[322022405,1712693440089,-153.839775,0.00023998,2]
[322022406,1712693440099,-153.839775,0.00023998,2]
[322022408,1712693440108,-83.56341422,0.00023998,2]
[322022411,1712693440126,-70.27636078,0.00023998,2]
[322022413,1712693440135,-153.839775,0.00023998,2]
[322022415,1712693440145,-151.0,0.00023998,2]
[322022417,1712693440154,-151.0,0.00023998,2]
[322022420,1712693440165,-151.0,0.00023998,2]
[322022422,1712693440174,-151.0,0.00023998,2]
[322022424,1712693440182,-151.0,0.00023998,2]
[322022426,1712693440191,-151.0,0.00023998,2]
[322022428,1712693440200,-151.0,0.00023998,2]
[322022430,1712693440209,-45.75122304,0.00023998,2]
[322022473,1712693440605,-105.24877696,0.00023998,2]
[322022475,1712693440615,-151.0,0.00023998,2]
[322022477,1712693440624,-155.968,0.00023998,2]
[322022479,1712693440633,-151.0,0.00023998,2]
[322022481,1712693440642,-151.0,0.00023998,2]
[322022483,1712693440651,-151.0,0.00023998,2]
[322022485,1712693440661,-151.0,0.00023998,2]
[322022487,1712693440670,-160.226649,0.00023998,2]
[322022489,1712693440679,-899.81225013,0.00023998,2]
[322022919,1712694411178,-154.90705577,0.00022672,2]
[322022920,1712694411197,-211.40870572,0.00022673,2]
[322022921,1712694411218,-283.34484323,0.00022674,2]
[322022922,1712694411238,-2616.08628475,0.00022674,2]
[322022923,1712694411258,-154.90705577,0.00022675,2]
[322022924,1712694411277,-2093.30000142,0.00022675,2]
[322022925,1712694411299,-2631.51514756,0.00022676,2]
[322022971,1712694632690,-283.34484323,0.00022229,2]
[322022973,1712694632700,-211.40870572,0.0002223,2]
[322022975,1712694632709,-2469.62047592,0.00022233,2]
[322022979,1712694632744,-902.43499995,0.00022233,2]
[322023243,1712694638756,-2411.02962113,0.00022233,2]
[322023245,1712694638766,-3548.64748376,0.00022234,2]
[322023247,1712694638775,-300.0,0.00022688,2]
[322023249,1712694638784,-1075.68165431,0.00022689,2]
[322023251,1712694638794,-156.84177265,0.00022689,2]
[322023253,1712694638803,-12507.79946815,0.00022689,2]
[322023447,1712694640805,-623.62678,0.00022689,2]
[322023450,1712694640829,-689.93313125,0.00022689,2]
[322023770,1712694644046,-652.67761834,0.00022689,2]
[322023782,1712694644280,-20920.02520967,0.00022689,2]
[322023785,1712694644300,-8145.46909422,0.00022689,2]
[322024474,1712694651596,556.36923545,0.00020418,5]
[322024991,1712694672842,155.68204879,0.00020418,2]
[322024993,1712694918973,-4000000.0,0.00037562,60]
[322025447,1712695294897,11637.81067526,0.00020933,2]
[322025448,1712695294931,11061.40697814,0.00020933,2]
[322025472,1712695485753,407.70786861,0.000216,5]
[322025475,1712695591380,634.352533,0.00025,10]
[322025483,1712695681789,-8854.9,0.0003,120]
[322025507,1712695780422,160.131864,0.00020528,2]
[322025562,1712695831882,-154.90705577,0.00021737,2]
[322025564,1712695831891,-868.54910044,0.00021737,2]
[322025565,1712695831901,-154.90705577,0.00021737,2]
[322025566,1712695831910,-211.40870572,0.00021738,2]
[322025567,1712695831919,-283.34484323,0.00021739,2]
[322025569,1712695831928,-154.90705577,0.0002174,2]
[322025570,1712695831937,-21.9761833,0.00021741,2]
[322025572,1712695831949,-1463.72818086,0.00021741,2]
[322025574,1712695831958,-1042.91596156,0.00021741,2]
[322025576,1712695831967,-154.90705577,0.00021742,2]
[322025578,1712695831976,-158.02606361,0.0002178,2]
[322025580,1712695831985,-702.86565328,0.000219,2]
[322025582,1712695831994,-369.72953559,0.000219,2]
[322025584,1712695832003,-300.0,0.00021998,2]
[322025586,1712695832012,-300.0,0.00021998,2]
[322025588,1712695832021,-654.54596836,0.00021999,2]
[322025590,1712695832032,-447.60715947,0.00021999,2]
[322025592,1712695832043,-57882.64468426,0.00021999,2]
[322025594,1712695832052,-638.05192735,0.00022,2]
[322025596,1712695832065,-3718.21894048,0.00022,2]
[322025598,1712695832077,-2616.08628475,0.00022018,2]
[322025600,1712695832086,-158.02606358,0.00022474,2]
[322025602,1712695832095,-217.92778221,0.00022676,2]
[322025604,1712695832106,-192.20549595,0.00022687,2]
[322025606,1712695832115,-323.22690908,0.00022687,2]
[322025608,1712695832124,-484.27597572,0.00022688,2]
[322025610,1712695832133,-2093.38678606,0.0002269,2]
[322025612,1712695832142,-624.36279286,0.00022792,2]
[322025614,1712695832152,-306.0,0.00022841,2]
[322025616,1712695832161,-620.42067366,0.00022885,2]
[322025618,1712695832170,-242.74204017,0.00023,2]
[322025620,1712695832179,-158.02606358,0.00023169,2]
[322025622,1712695832187,-369.72953557,0.00023228,2]
[322025624,1712695832196,-623.03603537,0.00023516,2]
[322025626,1712695832205,-157.59425558,0.00023758,2]
[322025628,1712695832214,-158.02606358,0.00023863,2]
[322025630,1712695832224,-300.0,0.00023905,2]
[322025632,1712695832233,-1986.48952686,0.00023995,2]
[322025634,1712695832243,-154.90705577,0.00023995,2]
[322025636,1712695832251,-154.90705577,0.00023995,2]
[322025638,1712695832261,-154.92253873,0.00023996,2]
[322025640,1712695832270,-155.09457916,0.00023997,2]
[322025643,1712695832280,-2021.36018187,0.00023997,2]
[322025645,1712695832289,-383.17859919,0.00023999,2]
[322025646,1712695832298,-4999.999,0.00024,2]
[322025648,1712695832307,-2312.07197085,0.00024009,2]
[322025650,1712695832317,-620.02103368,0.00024029,2]
[322025652,1712695832326,-702.86565322,0.00024122,2]
[322025655,1712695832336,-2312.07197084,0.00024146,2]
[322025657,1712695832345,-420.0,0.00024198,2]
[322025658,1712695832355,-5883.80792852,0.00024199,2]
[322025660,1712695832364,-2312.07197084,0.00024283,2]
[322025662,1712695832373,-276.88886272,0.00024399,2]